Cogmind - Beta 14 @@@ ROGUE MODE // 2024.09.28 @ 21:36:37 Player: morimori Result: Destroyed by G-73 Enforcer with Phase Gun Performance ------------- Evolutions (8) 4000 Regions Visited (27) 5400 Robots Destroyed (362) 1810 Value Destroyed (18004) 18004 Prototype IDs (64) 1280 Alien Tech Used (2) 400 Bonus (10000) 10000 TOTAL SCORE: 40894 Bonus ------- Triggered High Security 500 High Alert Combat Kills 4043 Follower Combat Kills 575 Awakened Behemoth Slayer 1000 Network Hubs Disabled 200 Met Data Miner 300 Met Imprinter 300 Met Zhirov 300 Met R17 at Cetus 500 Met R17 at Research 2000 Scanned by Researcher 500 Friendly Fire -218 Cogmind --------- Core Integrity 0/1450 Matter 158/300 Energy 100/100 System Corruption 35% Temperature Cool (0) Movement Core (50) Location -2/Testing Parts ------- > --- POWER (3) -------- (None) > --- PROPULSION (6) --- (None) > --- UTILITY (11) ----- (None) > --- WEAPON (3) ------- (None) > --- INVENTORY (5) ---- Myomer Leg Myomer Leg Experimental Coolant Injector Advanced Transmission Jammer Warp Gun Peak State ------------ > --- POWER ------------ Compact Particle Reactor Light Quantum Reactor Light Quantum Reactor > --- PROPULSION ------- Myomer Leg Myomer Leg Biometal Leg Enhanced Biometal Leg Enhanced Biometal Leg Centrium Leg > --- UTILITY ---------- Experimental Coolant Injector High-capacity Storage Unit Experimental Energy Well Advanced Signal Interpreter Advanced Terrain Scan Processor Advanced Target Analyzer SHELL Armor Improved Hacking Suite Improved Hacking Suite > --- WEAPON ----------- Enhanced Quantum Rifle Perforator > --- INVENTORY -------- Antimatter Reactor Myomer Leg Biometal Leg Biometal Leg Experimental Coolant Injector Energy Well Advanced Matter Compressor Advanced Terrain Scanner Precision Energy Filter Advanced Transmission Jammer Advanced Thermal Shield EM Disruption Field Antimissile System Transdimensional Reconstructor Warp Gun Linear Accelerator Fusion Bomb Launcher CR-A16's Behemoth Slayer [Rating: 199] Favorites ----------- Power Cold Fusion Reactor Engine Heavy Deuterium Engine Power Core Neutrino Core Reactor Cold Fusion Reactor Propulsion Advanced Myomer Leg Leg Advanced Myomer Leg Wheel Wheel Utility High-capacity Storage Unit Device Experimental Sensor Array Storage High-capacity Storage Unit Processor Advanced Terrain Scan Processor Hackware Hacking Suite Protection Centrium Medium Armor Plating Weapon Heavy Machine Gun Energy Gun Enhanced Quantum Rifle Energy Cannon Heavy Phase Cannon Ballistic Gun Heavy Machine Gun Ballistic Cannon Linear Accelerator Launcher Scatter Rocket Array Special Weapon RU-N14's Throwing Claymores Impact Weapon Hammer Piercing Weapon CR-A16's Behemoth Slayer Build | -11 -10 -10 -9 -8 -7 -7 -7 -7 -6 -6 -6 -6 -6 -5 -5 -5 -5 -5 -4 -4 -4 -4 -4 -4 -3 -2 -2 ------- Run | Yrd Mat Min Mat Mat Fac Low Low Dat Pro Fac Low Low Zio Pro Fac Upp Upp Zhi Pro Fac Ext Cet Arc Hub Res Res Tes Slots Evolved 16 | . . . 2 2 2 . . . . 2 . . . . 2 . . . . 2 . . . . 2 2 . Power 2 | . . . . . . . . . . 1 . . . . . . . . . . . . . . . 1 . Propulsion 4 | . . . . 2 1 . . . . . . . . . 1 . . . . . . . . . . . . Utility 9 | . . . 2 . 1 . . . . 1 . . . . 1 . . . . 2 . . . . 1 1 . Weapon 1 | . . . . . . . . . . . . . . . . . . . . . . . . . 1 . . Parts Attached 713 | 7 26 12 18 35 54 17 12 1 6 58 11 12 5 8 72 9 30 16 12 37 38 10 16 3 68 32 88 Power 58 | 1 2 . 1 2 1 . . . 2 6 . . . 2 5 . 3 1 . 3 2 1 3 1 6 3 13 Engine 15 | 1 2 . 1 1 1 . . . . 3 . . . . 2 . 2 . . 1 . . 1 . . . . Core 12 | . . . . 1 . . . . 2 1 . . . 2 2 . 1 . . . 1 1 . 1 . . . Reactor 31 | . . . . . . . . . . 2 . . . . 1 . . 1 . 2 1 . 2 . 6 3 13 Propulsion 116 | 2 7 2 1 9 9 4 . . 1 8 . . . . 9 . 2 3 . 4 4 1 . . 18 5 27 Treads . | . . . . . . . . . . . . . . . . . . . . . . . . . . . . Leg 102 | . . . . 7 9 4 . . 1 8 . . . . 9 . 2 3 . 4 4 1 . . 18 5 27 Wheel 14 | 2 7 2 1 2 . . . . . . . . . . . . . . . . . . . . . . . Hover . | . . . . . . . . . . . . . . . . . . . . . . . . . . . . Flight . | . . . . . . . . . . . . . . . . . . . . . . . . . . . . Utility 348 | 2 6 7 9 16 31 8 8 . 2 28 7 8 3 4 43 6 14 9 4 26 27 3 10 2 32 17 16 Device 258 | 1 3 5 5 10 20 7 7 . 1 23 7 7 3 3 38 5 10 6 4 21 26 3 6 2 19 9 7 Storage 9 | 1 3 . . . 1 . . . . . . . . . . . . . . 1 . . . . 1 1 1 Processor 10 | . . . 1 . 2 . . . . . . . . . 1 . 1 . . 1 . . . . 2 . 2 Hackware 11 | . . . . . 1 . . . . . . . . . 2 . . 1 . 2 1 . 2 . 1 1 . Protection 60 | . . 2 3 6 7 1 1 . 1 5 . 1 . 1 2 1 3 2 . 1 . . 2 . 9 6 6 Artifact . | . . . . . . . . . . . . . . . . . . . . . . . . . . . . Weapon 191 | 2 11 3 7 8 13 5 4 1 1 16 4 4 2 2 15 3 11 3 8 4 5 5 3 . 12 7 32 Energy Gun 13 | . . . 1 2 . . . . . 1 . . . . . . . . . . . . . . . 2 7 Energy Cannon 38 | . . . . . . 2 1 . . 7 1 . . 1 6 . 3 . 2 1 . . 1 . . 2 11 Ballistic Gun 69 | 2 8 1 4 5 9 1 2 . 1 6 2 3 1 . 8 2 3 1 3 2 . . 1 . . . 4 Ballistic Cannon 17 | . . . . . . . . . . . . . . . . . . . . 1 3 2 1 . 4 2 4 Launcher 41 | . 3 2 1 . 1 2 1 1 . 2 1 1 . 1 1 1 4 1 3 . 1 2 . . 6 . 6 Special Weapon 1 | . . . . . . . . . . . . . . . . . . . . . . 1 . . . . . Impact Weapon 5 | . . . 1 1 3 . . . . . . . . . . . . . . . . . . . . . . Slashing Weapon . | . . . . . . . . . . . . . . . . . . . . . . . . . . . . Piercing Weapon 7 | . . . . . . . . . . . . . 1 . . . 1 1 . . 1 . . . 2 1 . Special Melee Weapon . | . . . . . . . . . . . . . . . . . . . . . . . . . . . . Unidentified Prototypes 39 | . . 1 1 . 1 . . . . 3 . . 1 . 1 . . 4 . 2 . 1 2 1 10 1 10 Corrupted Parts 10 | . . . . . . . . . 1 . . . . . . . 1 . . . . . 2 . 4 . 2 System Corruption 80 | . . . . . . . . . 3 . . . . . . . 11 . . . . . 15 . 40 . 11 Parts Lost 74 | . . . . 8 1 . . . . . 1 . . . 8 . 8 . . 4 . 3 1 1 9 5 25 Power 15 | . . . . 1 . . . . . . . . . . 1 . 2 . . 1 . 1 1 . 1 1 6 Propulsion 23 | . . . . 3 . . . . . . . . . . 5 . 3 . . . . 1 . . 4 1 6 Utility 24 | . . . . 3 1 . . . . . 1 . . . 1 . 2 . . 3 . 1 . 1 3 1 7 Weapon 12 | . . . . 1 . . . . . . . . . . 1 . 1 . . . . . . . 1 2 6 Highest Loss Streak 7 | . . . . 5 1 . . . . . 1 . . . 7 . 6 . . 2 . 2 1 1 4 2 6 To Critical Strikes . | . . . . . . . . . . . . . . . . . . . . . . . . . . . . Average Slot Usage (%) 95 | . 99 100 100 98 99 100 100 100 100 99 92 93 92 93 90 88 80 73 94 92 98 97 99 100 97 99 91 Engine 4 | . 13 14 11 7 7 7 7 7 4 5 . . . . 1 5 4 2 . . . . 2 . . . . Core 1 | . . . . 1 . . . . 3 5 . . . 3 4 . 1 5 5 1 3 9 1 . . . . Reactor 4 | . . . . . . . . . . 1 13 13 13 8 3 5 3 2 5 7 6 . 5 9 8 12 10 Leg 25 | . . . . 17 38 38 38 38 38 32 26 26 26 26 26 23 15 18 29 25 29 30 31 31 27 25 25 Wheel 3 | . 27 28 22 17 . . . . . . . . . . . . . . . . . . . . . . . Device 11 | . 14 8 20 12 10 6 6 7 7 12 13 12 12 12 10 10 10 10 11 11 9 14 12 15 11 7 11 Storage 6 | . 14 14 11 9 7 7 7 7 7 6 6 6 6 6 5 5 5 5 5 5 5 5 5 5 4 4 5 Processor 10 | . . . 11 9 9 15 15 15 15 13 13 13 13 13 11 11 11 11 11 12 10 10 10 10 10 13 13 Hackware 8 | . . . . . 6 7 7 7 7 6 6 6 6 6 11 11 11 11 11 15 21 13 12 15 17 16 8 Energy Cannon 2 | . . . . . . 4 5 7 . 3 . 2 . 5 2 5 2 . 1 . . . 3 5 3 4 4 Ballistic Gun 8 | . 27 23 18 15 14 7 8 7 11 8 12 9 12 . 7 4 7 . 7 7 . . 1 5 . . . Ballistic Cannon 1 | . . . . . . . . . . . . . . . . . . . . 1 7 7 5 . 4 6 1 Peak Build Rating 199 | 8 14 22 22 33 55 56 56 56 57 72 74 74 73 75 89 91 92 110 108 122 127 127 136 133 159 177 199 Average Rating 80 | 6 12 14 20 27 46 54 54 55 55 66 72 71 72 73 82 90 83 80 107 117 121 122 126 130 144 170 177 On Entrance 76 | . 8 14 14 21 28 55 56 56 55 57 72 72 72 73 73 89 91 78 107 108 117 124 117 131 124 148 172 Naked Turns 2 | . . . . . . . . . . . . . . . . . . . . . . . . . . . 2 Heaviest Build 155 | 15 95 95 102 104 71 79 82 66 63 95 81 81 76 98 100 111 107 86 88 98 103 106 116 98 136 150 155 Greatest Support 173 | 26 26 20 22 26 85 85 85 85 87 92 84 84 84 84 104 95 95 140 140 145 165 165 155 155 165 170 173 Greatest Overweight (x) 5 | . 5 4 4 4 1 . . . . 1 . . . 1 2 1 1 1 . . . . . . . . 1 Average Overweight (x) . | . 2 4 4 3 . . . . . . . . . . . . . . . . . . . . . . . Largest Inventory Capacity 25 | 8 25 25 25 25 25 20 20 20 20 20 20 20 20 20 20 20 20 20 20 20 20 20 20 20 20 20 20 Average Capacity 20 | 7 20 25 25 25 20 20 20 20 20 20 20 20 20 20 20 20 20 20 20 20 20 20 20 20 20 20 19 Most Carried 25 | 8 25 25 25 25 25 20 20 20 20 20 20 20 20 20 20 20 20 20 20 20 20 20 20 20 20 20 20 Average Carried 19 | 5 18 24 24 24 19 19 20 20 19 19 19 20 19 20 19 19 18 19 19 18 19 19 19 20 19 18 19 Final Capacity 25 | 8 25 25 25 25 20 20 20 20 20 20 20 20 20 20 20 20 20 20 20 20 20 20 20 20 20 20 5 Final Carried 25 | 8 25 25 25 23 20 20 20 20 20 20 20 20 20 20 20 20 17 19 20 20 20 19 20 20 20 20 5 Class Distribution -------------------- 28% | Mutant 24% | Hacker-Mutant 13% | Skirmisher 11% | Hacker-Skirmisher 7% | Scavenger-Mutant 7% | Scavenger-Skirmisher 4% | Scavenger-Tank Dominant Class ---------------- Mutant | -10/Materials Mutant | -10/Mines Mutant | -9/Materials Scavenger-Mutant | -8/Materials Mutant | -7/Factory Mutant | -7/Lower Caves Mutant | -7/Lower Caves Mutant | -7/Data Miner Mutant | -6/Proximity Caves Scavenger-Skirmisher | -6/Factory Skirmisher | -6/Lower Caves Skirmisher | -6/Lower Caves Skirmisher | -6/Zion Skirmisher | -5/Proximity Caves Hacker-Skirmisher | -5/Factory Hacker-Mutant | -5/Upper Caves Hacker-Mutant | -5/Upper Caves Hacker-Mutant | -5/Zhirov Hacker-Mutant | -4/Proximity Caves Hacker-Mutant | -4/Factory Hacker-Skirmisher | -4/Extension Hacker-Mutant | -4/Cetus Scavenger-Mutant | -4/Archives Hacker-Skirmisher | -4/Hub_04(d) Hacker-Skirmisher | -3/Research Scavenger-Tank | -2/Research Scavenger-Tank | -2/Testing Resources | -11 -10 -10 -9 -8 -7 -7 -7 -7 -6 -6 -6 -6 -6 -5 -5 -5 -5 -5 -4 -4 -4 -4 -4 -4 -3 -2 -2 ----------- Run | Yrd Mat Min Mat Mat Fac Low Low Dat Pro Fac Low Low Zio Pro Fac Upp Upp Zhi Pro Fac Ext Cet Arc Hub Res Res Tes Matter Collected 21839 | 312 772 300 390 646 1234 391 171 . 174 1197 333 165 121 80 1865 419 1177 256 457 1121 1305 278 869 21 1367 1096 5322 Remotely . | . . . . . . . . . . . . . . . . . . . . . . . . . . . . Salvage Created 18943 | 159 706 204 463 1052 592 293 55 . 214 1181 261 264 . . 1708 192 615 290 347 694 823 551 350 21 1303 803 5802 Parts 825 | 13 48 8 35 53 43 11 6 . 10 50 12 12 . . 78 6 11 5 8 28 38 24 22 2 61 28 213 Haulers Intercepted 5 | . 2 . 1 . . . . . . . . . . . . . . . . . 2 . . . . . . Recyclers Shooed 23 | . 1 . . . . . . . . 13 . . . . 5 . . . . 1 . . . . . 2 1 Parts Field Recycled . | . . . . . . . . . . . . . . . . . . . . . . . . . . . . Retrieved Matter . | . . . . . . . . . . . . . . . . . . . . . . . . . . . . Parts Self-Destructed 75 | . . . . . . 14 14 . 8 . 4 13 3 4 . 3 5 3 4 . . . . . . . . Prevented 5 | . . . . . . . . . . . . . . . . . 5 . . . . . . . . . . Kills | -11 -10 -10 -9 -8 -7 -7 -7 -7 -6 -6 -6 -6 -6 -5 -5 -5 -5 -5 -4 -4 -4 -4 -4 -4 -3 -2 -2 ------- Run | Yrd Mat Min Mat Mat Fac Low Low Dat Pro Fac Low Low Zio Pro Fac Upp Upp Zhi Pro Fac Ext Cet Arc Hub Res Res Tes Combat Hostiles Destroyed 290 | . 13 8 11 21 10 5 5 . 4 8 3 5 . . 24 4 15 . 5 6 10 8 4 . 22 13 86 Guns 93 | . 8 6 10 19 10 1 . . 1 4 2 2 . . 16 1 2 . . 6 . . . . . 1 4 Cannons 89 | . . . . . . . . . . . . . . . 3 . . . . . 8 1 4 . 5 11 57 AOE 90 | . 5 2 1 2 . 4 5 . 3 4 1 3 . . 4 3 13 . 5 . . 1 . . 13 . 21 Classes Destroyed 27 | 3 6 1 1 1 1 2 . . . . 2 . . . . . 2 . 1 . . . . . 2 . 5 Worker 8 | 1 1 . . 1 2 . . . . 1 . . . . . . . . . 1 . . . . . . 1 Builder 9 | . 1 . . 3 1 . . . . 1 . . . . 1 . . . . . . . . . . . 2 Tunneler 6 | 3 1 . . . 1 . . . . . . . . . . . . . . 1 . . . . . . . Hauler 5 | . 2 . 1 . . . . . . . . . . . . . . . . . 2 . . . . . . Recycler 22 | 1 2 . . . 1 . . . . 8 . . . . 4 . . . . 2 2 . . . 1 1 . Mechanic 2 | . . . . . . . . . . . . . . . . . . . . . . . . . . . 2 Operator 18 | . 2 . 1 . . . . . . . . . . . . . . . . 1 2 . 9 1 . . 2 Drone 2 | . . . . . . . . . . . . . . . . . . . 2 . . . . . . . . Watcher 17 | . 3 . 1 . 2 . . . . 3 . . . . 2 . . . . 1 1 2 . . 1 1 . Swarmer 55 | . 6 . 4 . . . 5 . 3 4 . . . . . 4 5 . . . 4 . . . 11 1 8 Saboteur 4 | . . . . . . . . . . . . . . . . . . . . . . . . . . . 4 Grunt 94 | . 7 4 2 19 2 . . . . . 1 3 . . 7 . 7 . 3 . 2 . . . 2 1 34 Brawler 7 | . . . . 1 . . . . . . . . . . 1 . 1 . . . . . . . . 1 3 Duelist 7 | . . . . . . . . . . . 1 1 . . . . . . . . . . . . . . 5 Protector 3 | . . . . . . . . . . . . . . . . . 1 . . . . . . . . . 2 Sentry 16 | . . . 5 1 2 . . . . . . . . . 1 . 1 . . . . . 4 . . 2 . Demolisher 3 | . . . . . . . . . . . . . . . . . . . . . . . . . 3 . . Specialist 3 | . . . . . . . . . . . . . . . . . . . . . . . . . . . 3 Hunter 22 | . . . . . . 1 . . . . . . . . 2 . . . . 2 . . . . 2 2 13 Programmer 49 | . . . . . 6 . . . 1 4 . 1 . . 13 . . . . 4 2 . . . 1 5 12 Behemoth 5 | . . . . . . . . . . . . . . . . . 1 . . . 2 . . . 1 1 . Cetus Guard 8 | . . . . . . . . . . . . . . . . . . . . . . 8 . . . . . Investigator 2 | . . . . . . . . . . . . . . . . . . . . . . . . . . . 2 Striker 2 | . . . . . . . . . . . . . . . . . . . . . . . . . 2 . . Executioner 1 | . . . . . . . . . . . . . . . . . . . . . . . . . . . 1 Protovariant Y 1 | . . . . . . . . . . . . . . . . . . . . . . . . . . . 1 Packrat 3 | . . . . . . . . . . . . . . . . 2 1 . . . . . . . . . . Thief 1 | . . . . . . . . . . . 1 . . . . . . . . . . . . . . . . Assembled 4 | . . 4 . . . . . . . . . . . . . . . . . . . . . . . . . Thug 2 | . . . . . . 2 . . . . . . . . . . . . . . . . . . . . . Savage 1 | . . . . . . 1 . . . . . . . . . . . . . . . . . . . . . Mutant 1 | . . . . . . 1 . . . . . . . . . . . . . . . . . . . . . Best Kill Streak 15 | 3 4 2 3 9 3 4 4 . 3 4 3 4 . . 6 4 7 . 3 2 4 5 4 1 7 5 15 Combat Bots Only 15 | . 4 2 3 5 2 4 4 . 3 4 3 4 . . 6 4 7 . 3 2 4 4 2 . 7 5 15 Max Kills in Single Turn 6 | 1 2 1 1 3 2 1 2 . 2 2 1 2 . . 3 3 4 . 3 2 1 2 1 1 6 1 5 Gunslinging . | . . . . . . . . . . . . . . . . . . . . . . . . . . . . Exploded 6 | . 2 1 1 1 . 1 2 . 2 2 1 2 . . 3 3 4 . 3 . . 1 . . 6 . 4 Melee . | . . . . . . . . . . . . . . . . . . . . . . . . . . . . Uniques/NPCs Destroyed . | . . . . . . . . . . . . . . . . . . . . . . . . . . . . Combat | -11 -10 -10 -9 -8 -7 -7 -7 -7 -6 -6 -6 -6 -6 -5 -5 -5 -5 -5 -4 -4 -4 -4 -4 -4 -3 -2 -2 -------- Run | Yrd Mat Min Mat Mat Fac Low Low Dat Pro Fac Low Low Zio Pro Fac Upp Upp Zhi Pro Fac Ext Cet Arc Hub Res Res Tes Hostile Shots Fired 2278 | . 30 24 31 114 142 29 25 . 5 55 23 10 . 3 279 8 101 . 16 87 59 47 41 6 99 179 865 Missed 844 | . 11 10 5 39 49 13 14 . 2 20 9 7 . 3 68 4 33 . 3 30 18 18 15 2 45 72 354 Damage Taken 25512 | . 199 208 319 1189 966 250 93 . 41 222 326 40 . . 3098 24 1502 . 325 711 400 604 385 149 2003 2515 9943 Core 2899 | . 36 36 44 130 95 17 11 . . 11 14 . . . 344 . 202 . 83 82 25 66 72 . 164 290 1177 Absorbed by Shields 3263 | . . . . . 307 44 . . . 206 78 . . . 520 23 217 . . 236 338 172 241 . 377 . 504 Redirected to Shielding 4 | . . 4 . . . . . . . . . . . . . . . . . . . . . . . . . Ignored by Resistances 2160 | . . . . . . 23 11 . 6 109 20 10 . . 613 23 163 . 46 121 83 . 54 . . . 878 Regen/Repaired (Parts) 2120 | . 48 . . 11 91 . . . . . . . 22 . 379 . . . . . . . . . . 653 916 Core Remaining (%) 79 | 100 . 71 89 76 . . . . 82 . . . . 97 . . . . 37 . . . . 78 87 . . Volleys Fired 1101 | 7 51 18 30 70 44 17 21 . 9 83 16 6 . 4 173 9 27 . 18 53 30 20 69 16 51 62 197 Largest 3 | 2 2 2 2 2 2 2 2 . 2 2 2 2 . 1 2 2 2 . 1 2 2 2 2 2 3 3 3 Hottest 360 | 40 53 46 46 110 56 118 90 . 56 118 90 90 . 90 120 125 125 . 90 151 126 126 118 125 181 305 360 Shots Fired 1822 | 14 95 34 59 140 87 28 22 . 16 123 30 8 . 4 281 15 49 . 19 100 62 28 102 18 70 123 295 Gun 973 | 14 90 32 58 140 87 10 3 . 14 76 28 4 . . 215 5 32 . 8 83 . . . 2 . 9 63 Cannon 741 | . . . . . . 6 14 . . 45 1 2 . 4 64 9 8 . 7 17 62 16 102 16 46 114 208 Launcher 106 | . 5 2 1 . . 12 5 . 2 2 1 2 . . 2 1 9 . 4 . . 10 . . 24 . 24 Special 2 | . . . . . . . . . . . . . . . . . . . . . . 2 . . . . . Kinetic 1246 | 14 90 32 58 120 87 10 3 . 14 75 28 4 . . 215 5 32 . 8 90 62 16 68 2 26 86 101 Thermal 427 | . . . . . . 6 14 . . 46 1 2 . 4 64 9 8 . 7 10 . . 34 16 20 37 149 Explosive 70 | . 5 2 1 . . 6 5 . 2 2 1 2 . . 2 1 9 . 4 . . 2 . . 9 . 17 Electromagnetic 79 | . . . . 20 . 6 . . . . . . . . . . . . . . . 10 . . 15 . 28 Robot Hit Streak 21 | 7 14 7 12 7 8 5 2 . 5 10 16 7 . . 8 4 6 . 6 10 4 8 7 2 7 17 21 Robot Miss Streak 16 | 1 4 4 3 4 5 2 1 . 1 6 9 3 . . 7 11 16 . 11 3 4 2 3 1 4 2 15 Penetration Max 2 | . . . . . 1 . . . 1 1 . . . . . . . . . 1 . . 1 . . . 2 Secondary Targets 7 | . 2 1 . 1 . . . . . . 1 . . . . . . . . 2 . . . . . . . Max Gunslinging Chain 1 | . 1 1 . 1 . . . . . . 1 . . . . . . . . 1 . . . . . . . Shots Hit Robots 1115 | 8 65 21 43 97 62 15 2 . 11 74 18 6 . . 154 4 37 5 9 60 34 14 66 2 32 82 194 Core Hits 1013 | 5 38 13 22 52 59 20 9 . 9 78 13 19 . . 72 9 77 1 25 25 17 22 25 1 42 29 331 Critical Kills 56 | . . 1 . . . . . . . . . . . . 2 . . . . . . . 1 . . . 52 Critical Parts Destroyed 111 | . . 1 1 . 1 . . . . . . . . . . . . . . 1 . . . . . . 107 Critical Strikes 194 | . . 2 1 . 1 . . . . . . . . . 2 . . . . 2 9 1 9 . . 5 162 Meltdown 4 | . . . . . . . . . . . . . . . 1 . . . . . . . 1 . . . 2 Destroy 166 | . . 2 1 . 1 . . . . . . . . . 1 . . . . 1 . . . . . . 160 Blast 24 | . . . . . . . . . . . . . . . . . . . . 1 9 1 8 . . 5 . Melee Attacks 51 | . . . 1 12 12 . . . . . . . 8 . . . 7 5 . . 4 . . . 1 1 . Impact 25 | . . . 1 12 12 . . . . . . . . . . . . . . . . . . . . . . Slashing . | . . . . . . . . . . . . . . . . . . . . . . . . . . . . Piercing 26 | . . . . . . . . . . . . . 8 . . . 7 5 . . 4 . . . 1 1 . Sneak Attacks 2 | . . . . . . . . . . . . . . . . . . . . . 2 . . . . . . Combat Hostiles . | . . . . . . . . . . . . . . . . . . . . . . . . . . . . Follow-up Attacks . | . . . . . . . . . . . . . . . . . . . . . . . . . . . . Damage Inflicted 48911 | 99 1201 414 752 2162 1427 1233 495 . 535 2307 505 782 . . 5060 529 3019 278 904 1981 1534 1815 2317 63 2911 3621 12967 Guns 13941 | 99 886 324 717 1807 1307 91 36 . 238 1216 430 58 . . 3312 53 491 . 149 1720 . . . 30 . 241 736 Cannons 14743 | . . . . . . 63 . . . 672 . 64 . . 977 69 170 . . 261 1284 437 2317 33 893 3133 4370 Explosions 19459 | . 315 90 35 332 120 1079 459 . 297 419 75 660 . . 712 407 2156 . 755 . 113 1334 . . 2018 247 7836 Melee 640 | . . . . 23 . . . . . . . . . . . . 202 278 . . 137 . . . . . . Ramming 84 | . . . . . . . . . . . . . . . 59 . . . . . . . . . . . 25 Kinetic 20511 | 99 886 324 717 1513 1307 91 36 . 238 1216 430 58 . . 3312 53 491 . 149 1843 1284 437 1523 30 684 2280 1510 Thermal 8863 | . . . . 332 120 63 . . . 672 . 64 . . 977 69 170 . . 138 113 145 794 33 348 1094 3731 Explosive 15192 | . 315 90 35 . . 790 459 . 297 419 75 660 . . 712 407 2156 . 755 . . 250 . . 544 247 6981 Electromagnetic 3577 | . . . . 294 . 289 . . . . . . . . . . . . . . . 939 . . 1335 . 720 Impact 23 | . . . . 23 . . . . . . . . . . . . . . . . . . . . . . . Slashing 44 | . . . . . . . . . . . . . . . . . . . . . . 44 . . . . . Piercing 617 | . . . . . . . . . . . . . . . . . 202 278 . . 137 . . . . . . Highest Corruption 41 | . 1 1 . . . . . . 3 4 4 . . . 19 19 15 15 15 2 5 5 11 5 41 13 35 Average Corruption 9 | . 1 1 . . . . . . 3 3 3 . . . 12 9 8 15 15 2 4 5 5 4 5 7 25 Corruption Purged 36 | . . . . . . . . . . 1 4 . . . . 15 . . . . . . 16 . . . . Corruption Blocked . | . . . . . . . . . . . . . . . . . . . . . . . . . . . . Effects 559 | . 5 5 . . . . . . . 14 13 . . . 113 68 57 16 40 11 44 7 20 8 1 18 119 Message Errors 123 | . 2 3 . . . . . . . 7 3 . . . 22 14 14 1 7 3 10 2 3 3 . 3 26 Matter Fused 132 | . 1 . . . . . . . . 3 4 . . . 26 22 11 2 7 1 11 2 8 3 . 5 26 Heat Flow Errors 70 | . 1 1 . . . . . . . 1 3 . . . 16 10 7 3 4 4 8 1 2 1 . 1 7 Energy Discharges 68 | . . . . . . . . . . 1 2 . . . 14 6 7 3 7 2 5 . 2 . 1 2 16 Parts Rejected 3 | . . . . . . . . . . . 1 . . . 1 . . . . . . . . . . . 1 Parts Fused 9 | . . . . . . . . . . . . . . . 1 1 2 1 . . 3 . . . . . 1 Data Loss (minor) 60 | . 1 1 . . . . . . . 1 . . . . 8 8 8 6 6 . 3 2 1 . . 3 12 Data Loss (major) 24 | . . . . . . . . . . 1 . . . . 7 2 2 . 4 . 2 . 1 . . 2 3 Misfires 23 | . . . . . . . . . . . . . . . 7 3 4 . 2 . 2 . 1 . . 1 3 Alerts 11 | . . . . . . . . . . . . . . . 2 2 . . 1 1 . . . 1 . . 4 Misdirections 8 | . . . . . . . . . . . . . . . 2 . . . 1 . . . . . . . 5 Weapon Failures 28 | . . . . . . . . . . . . . . . 7 . 2 . 1 . . . 2 . . 1 15 Overload Shots . | . . . . . . . . . . . . . . . . . . . . . . . . . . . . Overflow Damage 1363 | . 7 . . . 33 69 12 . 1 26 . . . . 46 17 34 116 . 20 143 24 126 . 118 121 450 Projectiles 766 | . . . . . . 19 . . . 18 . . . . 46 12 29 . . 20 111 24 126 . 23 121 217 Explosions 481 | . 7 . . . 33 50 12 . 1 8 . . . . . 5 5 . . . 32 . . . 95 . 233 Melee 116 | . . . . . . . . . . . . . . . . . . 116 . . . . . . . . . Knockbacks 116 | . . . . 1 . . . . . . . . . . . . . . . 1 14 . 2 . 4 26 68 Impact 1 | . . . . 1 . . . . . . . . . . . . . . . . . . . . . . . Kinetic 110 | . . . . . . . . . . . . . . . . . . . . 1 13 . 2 . 4 24 66 Secondary 5 | . . . . . . . . . . . . . . . . . . . . . 1 . . . . 2 2 Self-Inflicted Damage 827 | . . . . . . . . . . . 72 . . . 114 . 145 . 111 . 25 . . . 49 110 201 Shots 31 | . . . . . . . . . . . 3 . . . 5 . 8 . 4 . 1 . . . 2 1 7 Rammed . | . . . . . . . . . . . . . . . . . . . . . . . . . . . . Targets Rammed 9 | . . . . . . . . . . . . . . . 6 . . . . . . . . . . . 3 Kicked 9 | . . . . . . . . . . . . . . . 6 . . . . . . . . . . . 3 Crushed . | . . . . . . . . . . . . . . . . . . . . . . . . . . . . Highest Temperature 522 | . 271 169 20 108 9 108 144 . . 191 267 16 . 64 395 251 298 241 173 243 252 167 287 209 362 260 522 Average Temperature 75 | . 136 41 5 28 3 31 54 . . 46 87 8 . 27 94 76 85 95 68 52 66 94 156 25 66 92 95 Received Heat Transfer 4422 | . 72 117 111 720 193 86 24 . . . 57 9 . . 564 . 847 . 72 . 46 . 46 . 9 564 885 Effects 12 | . . . . . . . . . . . . . . . 5 . . . . . . . . . 1 3 3 Shutdowns 4 | . . . . . . . . . . . . . . . 2 . . . . . . . . . 1 . 1 Energy Bleed 3 | . . . . . . . . . . . . . . . . . . . . . . . . . . 3 . Interference 2 | . . . . . . . . . . . . . . . 2 . . . . . . . . . . . . Damage (minor) 2 | . . . . . . . . . . . . . . . 1 . . . . . . . . . . . 1 Damage (core) 1 | . . . . . . . . . . . . . . . . . . . . . . . . . . . 1 Siege Activations . | . . . . . . . . . . . . . . . . . . . . . . . . . . . . Robots Corrupted 11 | . . . . . . . . . . . . . . . . . . . . . . 6 . . 3 . 2 Combat Hostiles 11 | . . . . . . . . . . . . . . . . . . . . . . 6 . . 3 . 2 Parts Fried 25 | . . . . 1 . 1 . . . . . . . . . . . . . . 4 7 . . 6 . 6 Impact Corruptions 1 | . . . . . . . . . . . . . . . . . . . . . 1 . . . . . . Robots Melted 4 | . . . . . . . . . . . . . . . 1 . . . . . . . 1 . . . 2 Combat Hostiles 3 | . . . . . . . . . . . . . . . 1 . . . . . . . . . . . 2 Parts Melted 26 | . . . . 2 . . . . . 5 . . . . . . . . . . . . 1 . 2 4 12 Heat Transferred 8717 | . . . . 300 100 100 . . . 1050 . 100 . . 1036 74 185 . . 148 100 100 851 37 372 1036 3128 Parts Sabotaged 1 | . . . . . . . . . . . . . . . . . . . . . . . . . . . 1 Parts Stolen . | . . . . . . . . . . . . . . . . . . . . . . . . . . . . Parts Stripped . | . . . . . . . . . . . . . . . . . . . . . . . . . . . . Power Chain Reactions 8 | . . . . 2 . . . . . . . . . . . . . . . . . 2 . . 3 . 1 Alert | -11 -10 -10 -9 -8 -7 -7 -7 -7 -6 -6 -6 -6 -6 -5 -5 -5 -5 -5 -4 -4 -4 -4 -4 -4 -3 -2 -2 ------- Run | Yrd Mat Min Mat Mat Fac Low Low Dat Pro Fac Low Low Zio Pro Fac Upp Upp Zhi Pro Fac Ext Cet Arc Hub Res Res Tes Peak Influence 3027 | 25 312 100 241 422 205 . . . . 106 . . . . 468 . . . . 252 195 315 378 91 365 509 3027 Initial 201 | . 16 . . 14 140 . . . . . . . . . . . . . . . 18 64 126 63 27 137 201 Average 183 | 9 87 34 62 138 88 . . . . 32 . . . . 179 . . . . 86 39 192 249 69 172 327 1024 Maximum Alert Level 5 | . 1 . 1 2 1 . . . . . . . . . 2 . . . . 1 . 1 1 . 1 2 5 Low Security (%) 74 | 100 70 100 97 76 96 . . . . 100 . . . . 55 . . . . 87 100 74 51 100 73 17 7 Level 1 17 | . 29 . 2 18 3 . . . . . . . . . 38 . . . . 12 . 25 48 . 26 40 26 Level 2 3 | . . . . 5 . . . . . . . . . . 5 . . . . . . . . . . 41 10 Level 3 . | . . . . . . . . . . . . . . . . . . . . . . . . . . . 8 Level 4 2 | . . . . . . . . . . . . . . . . . . . . . . . . . . . 25 Level 5 . | . . . . . . . . . . . . . . . . . . . . . . . . . . . . High Security 1 | . . . . . . . . . . . . . . . . . . . . . . . . . . . 21 Max Security . | . . . . . . . . . . . . . . . . . . . . . . . . . . . . Squads Dispatched 82 | . 1 . 2 3 10 . . . . 6 . . . . 13 . 1 . . 3 2 . . 2 5 3 31 Investigation 11 | . . . 1 3 1 . . . . . . . . . 3 . . . . . . . . 1 2 . . Extermination 30 | . . . . . 7 . . . . 6 . . . . 7 . . . . 3 . . . . . 3 4 Reinforcement 21 | . 1 . 1 . 2 . . . . . . . . . 3 . . . . . 2 . . 1 3 . 8 Assault 20 | . . . . . . . . . . . . . . . . . 1 . . . . . . . . . 19 Garrison . | . . . . . . . . . . . . . . . . . . . . . . . . . . . . Intercept . | . . . . . . . . . . . . . . . . . . . . . . . . . . . . Searches Triggered . | . . . . . . . . . . . . . . . . . . . . . . . . . . . . Data Miner Redirects 5 | . . . . . . . . . . . . . . . 1 . . . . . . . . . . . 4 Construction Impeded 6 | . . . . . . . . . . . . . . . 2 . . . . . . . . . . . 4 Haulers Reinforced 3 | . . . . . . . . . . . . . . . 1 . . . . . . . . . 1 . 1 Active Scanning Responses . | . . . . . . . . . . . . . . . . . . . . . . . . . . . . Cargo Convoy Interrupts . | . . . . . . . . . . . . . . . . . . . . . . . . . . . . Stealth | -11 -10 -10 -9 -8 -7 -7 -7 -7 -6 -6 -6 -6 -6 -5 -5 -5 -5 -5 -4 -4 -4 -4 -4 -4 -3 -2 -2 --------- Run | Yrd Mat Min Mat Mat Fac Low Low Dat Pro Fac Low Low Zio Pro Fac Upp Upp Zhi Pro Fac Ext Cet Arc Hub Res Res Tes Distress Signals 29 | . 1 . 3 3 . 1 . . . . . . . . 2 . . . . 1 4 2 . . 8 1 3 Communications Jammed 31 | . . . . . . . . . . 4 . . . . 7 . . . 2 . 12 . . 3 . . 3 Distress Signals 29 | . . . . . . . . . . 4 . . . . 7 . . . . . 12 . . 3 . . 3 Times Spotted 497 | . 23 8 18 27 24 9 4 . 3 11 7 5 . 4 34 4 14 . 5 12 17 9 29 4 36 19 171 Peak Tracking Total 23 | . 7 2 5 4 3 5 3 . 2 4 3 4 . 4 7 4 5 . 3 4 4 5 1 4 10 4 23 Tactical Retreats 37 | . 1 . 1 7 3 1 . . . . 1 . . . 1 . . . . . . 1 . . 3 2 16 Traps | -11 -10 -10 -9 -8 -7 -7 -7 -7 -6 -6 -6 -6 -6 -5 -5 -5 -5 -5 -4 -4 -4 -4 -4 -4 -3 -2 -2 ------- Run | Yrd Mat Min Mat Mat Fac Low Low Dat Pro Fac Low Low Zio Pro Fac Upp Upp Zhi Pro Fac Ext Cet Arc Hub Res Res Tes Traps Triggered 17 | . 4 . . 1 2 . . . . 4 . . . . . . . . . 3 . . . . 1 2 . Indirectly . | . . . . . . . . . . . . . . . . . . . . . . . . . . . . Trap Hack Attempts . | . . . . . . . . . . . . . . . . . . . . . . . . . . . . Triggered . | . . . . . . . . . . . . . . . . . . . . . . . . . . . . Disarmed . | . . . . . . . . . . . . . . . . . . . . . . . . . . . . Reprogrammed . | . . . . . . . . . . . . . . . . . . . . . . . . . . . . Reused . | . . . . . . . . . . . . . . . . . . . . . . . . . . . . Traps Extracted . | . . . . . . . . . . . . . . . . . . . . . . . . . . . . Installed . | . . . . . . . . . . . . . . . . . . . . . . . . . . . . Triggered 1 | . . . . . . . . . . . . 1 . . . . . . . . . . . . . . . Machines | -11 -10 -10 -9 -8 -7 -7 -7 -7 -6 -6 -6 -6 -6 -5 -5 -5 -5 -5 -4 -4 -4 -4 -4 -4 -3 -2 -2 ---------- Run | Yrd Mat Min Mat Mat Fac Low Low Dat Pro Fac Low Low Zio Pro Fac Upp Upp Zhi Pro Fac Ext Cet Arc Hub Res Res Tes Machines Disabled 44 | . . . . 1 5 . . . . . . . . . 6 . . . . 3 2 . 3 . 2 1 21 Max in Single Turn 5 | . . . . 1 5 . . . . . . . . . 2 . . . . 1 2 . 1 . 1 1 2 Garrison Access 7 | . . . . 1 . . . . . . . . . . 1 . . . . 1 . . . 1 2 . 1 Network Hub 1 | . . . . . . . . . . . . . . . . . . . . . . . . 1 . . . Energy Cycler 1 | . . . . . . . . . . . . . . . . . . . . . 1 . . . . . . Machines Repaired . | . . . . . . . . . . . . . . . . . . . . . . . . . . . . Machines Dismantled . | . . . . . . . . . . . . . . . . . . . . . . . . . . . . Machines Sabotaged 1 | . . . . . . . . . . . . . . . . . . . . . . . . 1 . . . Overloaded Fab Kills . | . . . . . . . . . . . . . . . . . . . . . . . . . . . . Hacking | -11 -10 -10 -9 -8 -7 -7 -7 -7 -6 -6 -6 -6 -6 -5 -5 -5 -5 -5 -4 -4 -4 -4 -4 -4 -3 -2 -2 --------- Run | Yrd Mat Min Mat Mat Fac Low Low Dat Pro Fac Low Low Zio Pro Fac Upp Upp Zhi Pro Fac Ext Cet Arc Hub Res Res Tes Machines Accessed 117 | . 11 . 12 5 15 . . 4 . . 1 1 1 . 10 1 . 9 . 11 7 3 . 5 7 4 10 Terminals 63 | . 8 . 9 3 7 . . . . . 1 . . . 4 . . . . 6 7 3 . 4 3 . 8 Fabricators 7 | . . . . . 3 . . . . . . . . . 2 . . . . 2 . . . . . . . Repair Stations 11 | . 1 . 2 1 2 . . . . . . . . . 2 . . . . . . . . . . 2 1 Recycling Units 7 | . 2 . . . 2 . . . . . . . . . . . . . . 1 . . . . 1 1 . Scanalyzers 4 | . . . 1 . . . . . . . . . . . 1 . . . . 1 . . . . . 1 . Garrison Access 9 | . . . . 1 1 . . . . . . . . . 1 . . . . 1 . . . 1 3 . 1 Total Hacks 364 | . 45 . 33 14 33 . . 29 . . 1 1 5 . 29 1 . 48 . 24 20 8 . 11 20 12 30 Successful 217 | . 17 . 16 5 11 . . 29 . . 1 1 5 . 19 1 . 48 . 13 13 4 . 4 9 10 11 Failed 146 | . 28 . 16 9 22 . . . . . . . . . 10 . . . . 11 7 4 . 7 11 2 19 Catastrophic 24 | . 3 . 5 1 6 . . . . . . . . . 1 . . . . 1 1 . . . 1 . 5 Database Lockouts 1 | . . . 1 . . . . . . . . . . . . . . . . . . . . . . . . Manual 138 | . 21 . 24 5 19 . . . . . . . . . 8 . . . . 13 15 . . 9 9 . 15 Terminals 178 | . 34 . 24 7 14 . . . . . 1 . . . 11 . . . . 13 20 8 . 9 11 . 26 Fabricators 21 | . . . . . 10 . . . . . . . . . 6 . . . . 5 . . . . . . . Repair Stations 38 | . 5 . 7 4 5 . . . . . . . . . 7 . . . . . . . . . . 8 2 Recycling Units 16 | . 6 . . . 3 . . . . . . . . . . . . . . 2 . . . . 3 2 . Scanalyzers 9 | . . . 2 . . . . . . . . . . . 3 . . . . 2 . . . . . 2 . Garrison Access 18 | . . . . 3 1 . . . . . . . . . 2 . . . . 2 . . . 2 6 . 2 Terminal Hacks 142 | . 10 . 10 1 3 . . 29 . . 1 1 5 . 3 1 . 48 . 4 11 4 . 1 5 . 5 Record 54 | . . . . . . . . 11 . . 1 . . . . . . 36 . 1 . 4 . . . . 1 Part Schematic 24 | . 1 . . . . . . 10 . . . . 5 . . . . 4 . 1 . . . . 2 . 1 Robot Schematic 5 | . . . . . . . . 5 . . . . . . . . . . . . . . . . . . . Robot Analysis 14 | . 2 . 3 . . . . . . . . . . . . . . 4 . . 5 . . . . . . Prototype ID Bank 9 | . 1 . 1 . . . . 3 . . . . . . . . . 4 . . . . . . . . . Open Door 5 | . . . . . . . . . . . . 1 . . . 1 . . . 1 1 . . . . . 1 Level Access Points 1 | . . . . . . . . . . . . . . . . . . . . . . . . 1 . . . Branch Access Points 1 | . . . . . . . . . . . . . . . . . . . . . . . . . 1 . . Terminal Index 7 | . 1 . 1 1 . . . . . . . . . . 1 . . . . 1 . . . . 1 . 1 Fabricator Index 2 | . . . . . 1 . . . . . . . . . . . . . . . . . . . 1 . . Recycling Unit Index 1 | . . . 1 . . . . . . . . . . . . . . . . . . . . . . . . Unreport Threat 8 | . 3 . 1 . . . . . . . . . . . 1 . . . . . 2 . . . . . 1 Locate Traps 7 | . 2 . 2 . 1 . . . . . . . . . 1 . . . . . 1 . . . . . . Security Status 1 | . . . 1 . . . . . . . . . . . . . . . . . . . . . . . . Recall Extermination 1 | . . . . . 1 . . . . . . . . . . . . . . . . . . . . . . Recall Reinforcements 2 | . . . . . . . . . . . . . . . . . . . . . 2 . . . . . . Fabricator Hacks 5 | . . . . . 1 . . . . . . . . . 3 . . . . 1 . . . . . . . Network Status 2 | . . . . . . . . . . . . . . . 1 . . . . 1 . . . . . . . Load Schematic 1 | . . . . . . . . . . . . . . . 1 . . . . . . . . . . . . Build 2 | . . . . . 1 . . . . . . . . . 1 . . . . . . . . . . . . Repair Station Hacks 20 | . 2 . 2 2 2 . . . . . . . . . 5 . . . . . . . . . . 6 1 Scan Component 12 | . 1 . 2 1 1 . . . . . . . . . 3 . . . . . . . . . . 3 1 Repair 8 | . 1 . . 1 1 . . . . . . . . . 2 . . . . . . . . . . 3 . Recycling Unit Hacks 6 | . 1 . . . 1 . . . . . . . . . . . . . . 1 . . . . 1 2 . Process 1 | . . . . . . . . . . . . . . . . . . . . . . . . . . 1 . Retrieve Matter 1 | . . . . . . . . . . . . . . . . . . . . . . . . . . 1 . Retrieve Components 4 | . 1 . . . 1 . . . . . . . . . . . . . . 1 . . . . 1 . . Scanalyzer 8 | . . . 1 . . . . . . . . . . . 3 . . . . 2 . . . . . 2 . Insert Component 5 | . . . 1 . . . . . . . . . . . 1 . . . . 2 . . . . . 1 . Analyze 3 | . . . . . . . . . . . . . . . 2 . . . . . . . . . . 1 . Garrison Access Hacks 7 | . . . . 1 . . . . . . . . . . 1 . . . . 1 . . . 1 2 . 1 Seal Access 7 | . . . . 1 . . . . . . . . . . 1 . . . . 1 . . . 1 2 . 1 Unauthorized Hacks 29 | . 4 . 3 1 4 . . . . . . . . . 4 . . . . 4 2 . . 2 1 . 4 Terminals 24 | . 4 . 3 1 2 . . . . . . . . . 2 . . . . 3 2 . . 2 1 . 4 Assimilate 7 | . 1 . . . . . . . . . . . . . . . . . . 2 2 . . . 1 . 1 Botnet 8 | . 1 . 1 1 1 . . . . . . . . . 1 . . . . 1 . . . 1 . . 1 Disrupt 4 | . 1 . 1 . . . . . . . . . . . . . . . . . . . . . . . 2 Operators 4 | . 1 . 1 . 1 . . . . . . . . . 1 . . . . . . . . . . . . Sabotage 1 | . . . . . . . . . . . . . . . . . . . . . . . . 1 . . . Fabricators 5 | . . . . . 2 . . . . . . . . . 2 . . . . 1 . . . . . . . Prioritize 1 | . . . . . . . . . . . . . . . 1 . . . . . . . . . . . . Fabnet 4 | . . . . . 2 . . . . . . . . . 1 . . . . 1 . . . . . . . Repair Stations . | . . . . . . . . . . . . . . . . . . . . . . . . . . . . Recycling Units . | . . . . . . . . . . . . . . . . . . . . . . . . . . . . Scanalyzers . | . . . . . . . . . . . . . . . . . . . . . . . . . . . . Garrison Access . | . . . . . . . . . . . . . . . . . . . . . . . . . . . . Data Cores Recovered 1 | . 1 . . . . . . . . . . . . . . . . . . . . . . . . . . Used . | . . . . . . . . . . . . . . . . . . . . . . . . . . . . Hacking Detections 86 | . 10 . 12 5 14 . . . . . . . . . 9 . . . . 8 6 3 . 4 6 1 8 Full Trace Events 6 | . . . 1 2 . . . . . . . . . . 3 . . . . . . . . . . . . Feedback Events . | . . . . . . . . . . . . . . . . . . . . . . . . . . . . Feedback Blocked . | . . . . . . . . . . . . . . . . . . . . . . . . . . . . Robot Schematics Acquired 5 | . . . . . . . . 5 . . . . . . . . . . . . . . . . . . . Robots Built 1 | . . . . . 1 . . . . . . . . . . . . . . . . . . . . . . Authchips . | . . . . . . . . . . . . . . . . . . . . . . . . . . . . Time 58 | . . . . . 58 . . . . . . . . . . . . . . . . . . . . . . Total Robot Build Rating 3 | . . . . . 3 . . . . . . . . . . . . . . . . . . . . . . Part Schematics Acquired 26 | . 1 . . . . . . 10 . . . . 5 . 1 . . 4 . 1 . . . . 2 1 1 Parts Built 1 | . . . . . . . . . . . . . . . 1 . . . . . . . . . . . . Authchips . | . . . . . . . . . . . . . . . . . . . . . . . . . . . . Time 42 | . . . . . . . . . . . . . . . 42 . . . . . . . . . . . . Total Part Build Rating 4 | . . . . . . . . . . . . . . . 4 . . . . . . . . . . . . Parts Repaired 7 | . 1 . . 1 1 . . . . . . . . . 2 . . . . . . . . . . 2 . Time 391 | . 32 . . 136 32 . . . . . . . . . 86 . . . . . . . . . . 105 . Parts Recycled . | . . . . . . . . . . . . . . . . . . . . . . . . . . . . Recycled Matter 120 | . . . . . . . . . . . . . . . . . . . . . . . . . . 120 . Retrieved Matter 120 | . . . . . . . . . . . . . . . . . . . . . . . . . . 120 . Retrieved Components 22 | . 3 . . . 10 . . . . . . . . . . . . . . 7 . . . . 2 . . Parts Scanalyzed 3 | . . . 1 . . . . . . . . . . . 1 . . . . . . . . . . 1 . Part Schematics Acquired 2 | . . . . . . . . . . . . . . . 1 . . . . . . . . . . 1 . Parts Damaged 2 | . . . 1 . . . . . . . . . . . 1 . . . . . . . . . . . . Bothacking | -11 -10 -10 -9 -8 -7 -7 -7 -7 -6 -6 -6 -6 -6 -5 -5 -5 -5 -5 -4 -4 -4 -4 -4 -4 -3 -2 -2 ------------ Run | Yrd Mat Min Mat Mat Fac Low Low Dat Pro Fac Low Low Zio Pro Fac Upp Upp Zhi Pro Fac Ext Cet Arc Hub Res Res Tes Used RIF Installer . | . . . . . . . . . . . . . . . . . . . . . . . . . . . . Robots Hacked 10 | . . . . . . . . . . 1 . . . . . . 1 . . 1 . . . . 4 . 3 Non-combat . | . . . . . . . . . . . . . . . . . . . . . . . . . . . . Combat 10 | . . . . . . . . . . 1 . . . . . . 1 . . 1 . . . . 4 . 3 Robot Hacks Applied . | . . . . . . . . . . . . . . . . . . . . . . . . . . . . Relay Couplers Released 3 | . . . . . . . . . . . . . . . . . . . . . . . . . 3 . . Machine Destruction 3 | . . . . . . . . . . . . . . . . . . . . . . . . . 3 . . Fabnet Peak Effective % 6 | . . . . . . . . . 6 6 6 6 6 2 2 2 2 2 3 3 3 3 3 3 4 1 1 Autooverrided 10 | . . . . . . . . . . 1 . . . . . . 1 . . 1 . . . . 4 . 3 Robots Rewired 10 | . . . . . . 2 . . . . . . . . . . . . . . 6 . . . . . 2 Allies Hacked 3 | . . . . . . . 1 . . . . . . . . . . . . . 2 . . . . . . Hacks Repelled . | . . . . . . . . . . . . . . . . . . . . . . . . . . . . Allies | -11 -10 -10 -9 -8 -7 -7 -7 -7 -6 -6 -6 -6 -6 -5 -5 -5 -5 -5 -4 -4 -4 -4 -4 -4 -3 -2 -2 -------- Run | Yrd Mat Min Mat Mat Fac Low Low Dat Pro Fac Low Low Zio Pro Fac Upp Upp Zhi Pro Fac Ext Cet Arc Hub Res Res Tes Total Allies 30 | . . . . . 1 2 . . . 1 . . 6 . . . 1 . . 2 6 . . . 5 . 6 Largest Group 6 | . . . . . 1 2 2 1 1 1 . . 6 6 . . 1 . . 1 5 . . . 2 . 2 Highest-Rated Group 222 | . . . . . 23 62 62 31 31 37 . . 160 160 . . 29 . . 54 222 . . . 82 . 54 Highest-Rated Ally 58 | . . . . . 23 31 31 31 31 37 . . 31 31 . . 29 . . 54 46 . . . 58 . 27 Total Orders 4 | . . . . . 1 . . . . . . . . . . . . . . 1 . . . . . . 2 STAY 2 | . . . . . . . . . . . . . . . . . . . . 1 . . . . . . 1 FOLLOW 1 | . . . . . . . . . . . . . . . . . . . . . . . . . . . 1 AID 1 | . . . . . 1 . . . . . . . . . . . . . . . . . . . . . . Ally Attacks 121 | . . . . . . . 37 . 1 . . . . 31 . . 3 . . 2 33 . . . 12 . 2 Total Damage 2871 | . . . . . . . 561 . 25 . . . . 532 . . 37 . . 79 1047 . . . 569 . 21 Kills 22 | . . . . . . . 6 . . . . . . 6 . . . . . 1 5 . . . 4 . . Allies Corrupted 3 | . . . . . . . 1 . . . . . . 1 . . . . . . 1 . . . . . . Allies Melted . | . . . . . . . . . . . . . . . . . . . . . . . . . . . . Intel | -11 -10 -10 -9 -8 -7 -7 -7 -7 -6 -6 -6 -6 -6 -5 -5 -5 -5 -5 -4 -4 -4 -4 -4 -4 -3 -2 -2 ------- Run | Yrd Mat Min Mat Mat Fac Low Low Dat Pro Fac Low Low Zio Pro Fac Upp Upp Zhi Pro Fac Ext Cet Arc Hub Res Res Tes Robot Analysis Total 14 | . 2 . 3 . . . . . . . . . . . . . . 4 . . 5 . . . . . . Derelict Logs Recovered 15 | . . 1 . . . 3 1 . . . 1 2 1 2 . 1 2 . 1 . . . . . . . . Drone Launches . | . . . . . . . . . . . . . . . . . . . . . . . . . . . . Drone Recoveries . | . . . . . . . . . . . . . . . . . . . . . . . . . . . . Exploration | -11 -10 -10 -9 -8 -7 -7 -7 -7 -6 -6 -6 -6 -6 -5 -5 -5 -5 -5 -4 -4 -4 -4 -4 -4 -3 -2 -2 ------------- Run | Yrd Mat Min Mat Mat Fac Low Low Dat Pro Fac Low Low Zio Pro Fac Upp Upp Zhi Pro Fac Ext Cet Arc Hub Res Res Tes Turns Passed 40993 | 128 2424 822 1320 1269 2515 1866 1977 184 908 2881 1465 1360 1448 1244 3276 2269 2010 406 925 1985 1956 298 698 502 2054 811 1992 Spaces Moved 24028 | 87 1252 479 752 582 1522 1123 1090 134 683 1611 1013 988 931 863 1494 1335 1138 209 648 1377 1149 186 313 265 1448 404 952 Core 4 | 1 . . . . . . . . . . . . . . . . . . . . . . . . . . 3 Treads . | . . . . . . . . . . . . . . . . . . . . . . . . . . . . Legs 20873 | . . . . . 1522 1123 1090 134 683 1611 1013 988 931 863 1494 1335 1138 209 648 1377 1149 186 313 265 1448 404 949 Wheels 3151 | 86 1252 479 752 582 . . . . . . . . . . . . . . . . . . . . . . . Hover . | . . . . . . . . . . . . . . . . . . . . . . . . . . . . Flight . | . . . . . . . . . . . . . . . . . . . . . . . . . . . . Fastest Speed 50 | 50 80 140 140 135 120 126 126 126 126 126 130 130 130 130 127 130 130 124 124 124 120 115 115 115 115 116 50 Average Speed 129 | 89 123 140 144 143 125 126 126 126 126 126 130 130 130 130 144 130 160 171 124 124 120 118 115 115 118 119 116 Slowest Speed 360 | 100 155 140 145 145 190 126 126 126 126 216 130 130 130 210 360 220 250 220 124 125 124 120 115 115 120 120 190 Overloaded Moves . | . . . . . . . . . . . . . . . . . . . . . . . . . . . . Propulsion Burnouts . | . . . . . . . . . . . . . . . . . . . . . . . . . . . . Robots Hopped 2 | . . . . . . . . . . . . . . . . . . . . . . . . . 2 . . Cave-ins Triggered . | . . . . . . . . . . . . . . . . . . . . . . . . . . . . Teleports 1 | . . . . . . . . . . . . . . . . . . . . . . . . . . . 1 Exploration Rate (%) 62 | 5 100 63 61 34 34 83 92 76 71 30 98 93 89 86 27 80 98 62 55 24 94 68 96 27 40 10 64 Regions Visited 27 Branch Regions 18 Pre-discovered Areas 9 | . . 1 . . . 2 . 1 . . . 2 . . . . . 3 . . . . . . . . . Known Exits Taken 23 | . . . 1 . 1 1 1 1 1 1 1 1 1 1 1 1 1 1 1 1 1 1 1 1 1 1 . Unknown Exits Taken 4 | 1 1 1 . 1 . . . . . . . . . . . . . . . . . . . . . . . Scrap Searched 36 | . . . . . . 11 2 . 2 . 4 4 3 3 . 1 4 . 2 . . . . . . . . Spaces Dug 94 | . . . 1 3 6 2 6 . . 15 1 . 1 4 20 3 . . 3 6 . . . 11 6 3 3 Terrain Destroyed 1464 | . 28 4 10 8 27 62 64 . 8 33 34 56 1 4 80 37 145 . 133 78 49 50 31 16 119 48 339 Melee 11 | . . . 1 3 6 . . . . . . . 1 . . . . . . . . . . . . . . Projectile 338 | . . . . . 2 6 13 . . 24 1 . . 4 36 8 13 . 9 41 34 4 31 16 17 32 47 AOE 1009 | . 28 4 9 5 19 56 51 . 8 9 33 56 . . 44 29 132 . 124 37 15 46 . . 102 16 186 Terrain Rammed . | . . . . . . . . . . . . . . . . . . . . . . . . . . . . Walls Destroyed . | . . . . . . . . . . . . . . . . . . . . . . . . . . . . Machines Disabled . | . . . . . . . . . . . . . . . . . . . . . . . . . . . . Actions | -11 -10 -10 -9 -8 -7 -7 -7 -7 -6 -6 -6 -6 -6 -5 -5 -5 -5 -5 -4 -4 -4 -4 -4 -4 -3 -2 -2 --------- Run | Yrd Mat Min Mat Mat Fac Low Low Dat Pro Fac Low Low Zio Pro Fac Upp Upp Zhi Pro Fac Ext Cet Arc Hub Res Res Tes Total 31893 | 122 2043 597 930 856 2022 1543 1665 148 715 2328 1128 1051 1156 977 2327 1849 1242 247 740 1546 1645 230 543 444 1717 608 1474 Wait 5389 | 8 661 71 104 127 318 353 543 14 12 532 87 41 200 98 555 493 32 3 59 50 390 8 134 159 98 93 146 Move 23997 | 86 1251 478 751 581 1521 1122 1089 133 682 1610 1012 987 930 862 1493 1334 1137 208 647 1376 1148 185 312 264 1444 402 952 Hop 1 | . . . . . . . . . . . . . . . . . . . . . . . . . 1 . . Pick Up 267 | 11 31 8 13 15 31 3 . . 2 18 2 2 5 2 13 2 6 6 2 15 10 5 7 1 23 10 24 Fast Attach 88 | 7 7 . 1 2 2 . . . 1 5 1 . 3 . 11 . 1 5 . 8 4 . 3 . 8 2 17 Attach 85 | . . . 2 8 5 . . . . 3 2 . . . 6 1 6 3 . 7 1 3 2 . 8 7 21 Detach 20 | . . . . . 2 . . . . 1 . . . . 1 . . 3 . 2 . . 1 . 3 1 6 Swap 544 | . 19 12 15 25 47 17 12 1 5 50 8 12 2 8 55 8 23 8 12 24 33 7 11 3 53 23 51 Drop 290 | 3 23 10 13 16 39 6 . . 4 26 . 3 8 3 14 2 3 6 2 11 16 2 4 1 27 6 42 Fire 1101 | 7 51 18 30 70 44 17 21 . 9 83 16 6 . 4 173 9 27 . 18 53 30 20 69 16 51 62 197 Melee 51 | . . . 1 12 12 . . . . . . . 8 . . . 7 5 . . 4 . . . 1 1 . Ram . | . . . . . . . . . . . . . . . . . . . . . . . . . . . . Kick 9 | . . . . . . . . . . . . . . . 6 . . . . . . . . . . . 3 Crush . | . . . . . . . . . . . . . . . . . . . . . . . . . . . . Escape Stasis 10 | . . . . . . . . . . . . . . . . . . . . . . . . . . 1 9 Rewire 41 | . . . . . 1 25 . . . . . . . . . . . . . . 9 . . . . . 6 Trap . | . . . . . . . . . . . . . . . . . . . . . . . . . . . . Miscellaneous . | . . . . . . . . . . . . . . . . . . . . . . . . . . . . Route ------- -11/Scrapyard -10/Materials (discovered 6 exits: *Mat x3 / [*Min x2] / [*Sub]) -10/Mines -9/Materials (discovered 4 exits: *Mat x2 / *Min x2) -8/Materials -7/Factory -7/Lower Caves -7/Lower Caves (discovered 2 exits: *Fac / *Dat) -7/Data Miner -6/Proximity Caves -6/Factory (discovered 2 exits: Fac / *Low) -6/Lower Caves -6/Lower Caves (discovered 2 exits: *Fac / *Zio) -6/Zion (discovered 2 exits: [Dee] / *Pro) -5/Proximity Caves -5/Factory (discovered 4 exits: *Fac x2 / *Upp x2) -5/Upper Caves -5/Upper Caves (discovered 2 exits: *Fac / *Zhi) -5/Zhirov -4/Proximity Caves -4/Factory (discovered 3 exits: *Res / *Ext / Arm) -4/Extension (discovered 3 exits: *Res x2 / *Cet) -4/Cetus (discovered 2 exits: *Res / *Arc) -4/Archives (discovered 3 exits: *Res / *Hub x2) -4/Hub_04(d) (discovered 4 exits: *Res x4) -3/Research (discovered 4 exits: *Res x2 / Qua x2) -2/Research -2/Testing History --------- Turn | Location | Event 10 | -11/Scrapyard | Discovered new exit (range 14) 129 | -11/Scrapyard | Entered Materials 330 | -10/Materials | Build established: Mutant 700 | -10/Materials | Discovered new exit (range 13) 1007 | -10/Materials | Discovered new exit (range 8) 1169 | -10/Materials | Repaired Hvy. Assault Rifle 1286 | -10/Materials | Discovered new exit (range 16) 1546 | -10/Materials | Discovered new exit (range 9) 1738 | -10/Materials | Discovered new exit (range 12) 2315 | -10/Materials | Discovered new exit (range 3) 2553 | -10/Materials | Entered Mines 2695 | -10/Mines | Learned location of 2 exits from Materials 2702 | -10/Mines | Found a damaged Exp. Sensor Array with a note attached 2705 | -10/Mines | Found Prototype Device 2705 | -10/Mines | Identified Exp. Sensor Array 2721 | -10/Mines | Assembled infested the area 3244 | -10/Mines | Discovered new exit (range 5) 3311 | -10/Mines | Learned location of Storage (-8) 3375 | -10/Mines | Entered Materials 3375 | -9/Materials | Evolved 2 slots: Utility x2 3376 | -9/Materials | Identified exit to Mines 3376 | -9/Materials | Identified exit to Materials 3850 | -9/Materials | Discovered exit to Mines (range 16) 4174 | -9/Materials | Central database locked down 4333 | -9/Materials | Discovered exit to Materials (range 8) 4695 | -9/Materials | Entered another Materials area 4695 | -8/Materials | Evolved 2 slots: Propulsion x2 4989 | -8/Materials | Build established: Scavenger-Mutant 5321 | -8/Materials | Discovered new exit (range 8) 5522 | -8/Materials | Repaired Broken Exp. Sensor Array? 5863 | -8/Materials | Lost 5 parts (1p3n1u) 5964 | -8/Materials | Entered Factory 5964 | -7/Factory | Evolved 2 slots: Propulsion x1, Utility x1 6254 | -7/Factory | Repaired Hvy. Assault Rifle? 6718 | -7/Factory | Discovered new exit (range 14) 6805 | -7/Factory | Build established: Mutant 7936 | -7/Factory | Fabricated M-28 Smith (x1) 8315 | -7/Factory | Identified exit to Lower Caves 8479 | -7/Factory | Entered Lower Caves 8505 | -7/Lower Caves | Learned location of Extension (-4) 9155 | -7/Lower Caves | Attacked by a faux Warlord 9360 | -7/Lower Caves | Encountered a Warlord checkpoint 9378 | -7/Lower Caves | Learned Factory emergency access door positions 9833 | -7/Lower Caves | Discovered new exit (range 15) 10338 | -7/Lower Caves | Identified exit to Lower Caves 10345 | -7/Lower Caves | Entered another Lower Caves area 10345 | -7/Lower Caves | Accompanied by 2 allies 10537 | -7/Lower Caves | Encountered a Warlord checkpoint 10624 | -7/Lower Caves | Discovered new exit (range 9) 10634 | -7/Lower Caves | Identified exit to Factory 11164 | -7/Lower Caves | Discovered new exit (range 16) 11288 | -7/Lower Caves | Attracted the attention of an 0b10 checkpoint 12320 | -7/Lower Caves | Identified exit to Data Miner 12322 | -7/Lower Caves | Entered Data Miner 12322 | -7/Data Miner | Accompanied by 1 ally 12322 | -7/Data Miner | Discovered new exit (range 6) 12330 | -7/Data Miner | Identified exit to Proximity Caves 12346 | -7/Data Miner | Met Data Miner 12430 | -7/Data Miner | Learned location of Section 7 (-2) 12430 | -7/Data Miner | Acquired the access code to Warlord's prototype stash 12449 | -7/Data Miner | Received God Mode back door access code from Data Miner 12506 | -7/Data Miner | Entered Proximity Caves 12506 | -6/Proximity Caves | Accompanied by 1 ally 13018 | -6/Proximity Caves | Found DCF Scrap (10 items) 13360 | -6/Proximity Caves | Discovered exit to Factory (range 15) 13414 | -6/Proximity Caves | Entered Factory 13414 | -6/Factory | Accompanied by 1 ally 13414 | -6/Factory | Evolved 2 slots: Power x1, Utility x1 13720 | -6/Factory | Build established: Scavenger-Skirmisher 14165 | -6/Factory | Local machine network offline 14278 | -6/Factory | Discovered new exit (range 14) 15577 | -6/Factory | Found Prototype Launcher 15577 | -6/Factory | Identified Scatter Rocket Array 15760 | -6/Factory | Discovered new exit (range 6) 15769 | -6/Factory | Identified exit to Lower Caves 16237 | -6/Factory | Build established: Skirmisher 16295 | -6/Factory | Entered Lower Caves 16842 | -6/Lower Caves | Learned Factory security intel 16851 | -6/Lower Caves | Encountered a Warlord checkpoint 17641 | -6/Lower Caves | Discovered new exit (range 11) 17652 | -6/Lower Caves | Identified exit to Lower Caves 17760 | -6/Lower Caves | Entered another Lower Caves area 17830 | -6/Lower Caves | Discovered new exit (range 14) 17847 | -6/Lower Caves | Identified exit to Factory 18150 | -6/Lower Caves | Learned location of Zion (-6) 18371 | -6/Lower Caves | Discovered new exit (range 13) 19119 | -6/Lower Caves | Identified exit to Zion 19120 | -6/Lower Caves | Entered Zion 19210 | -6/Zion | Discovered new exit (range 15) 19228 | -6/Zion | Identified exit to Proximity Caves 19417 | -6/Zion | Found CR-A16's Pointy Stick 19535 | -6/Zion | Found Prototype Device 19535 | -6/Zion | Identified Bomb Factory No. 2 19560 | -6/Zion | Gained Derelict followers 19596 | -6/Zion | Discovered new exit (range 14) 19904 | -6/Zion | Found Prototype Special Weapon 20025 | -6/Zion | Met Imprinter 20196 | -6/Zion | Given A8's code to call for help 20223 | -6/Zion | Learned location of 1 exit from Factory 20343 | -6/Zion | Received a hallucinogenic algorithm 20448 | -6/Zion | Gained Derelict followers 20568 | -6/Zion | Entered Proximity Caves 20568 | -5/Proximity Caves | Accompanied by 6 allies 21569 | -5/Proximity Caves | Learned 8 Factory zone layouts 21704 | -5/Proximity Caves | Discovered exit to Factory (range 13) 21812 | -5/Proximity Caves | Entered Factory 21812 | -5/Factory | Evolved 2 slots: Propulsion x1, Utility x1 21813 | -5/Factory | Identified exit to Upper Caves 21814 | -5/Factory | Identified exit to Factory 22106 | -5/Factory | Build established: Hacker-Skirmisher 22888 | -5/Factory | System corruption reached 10% 22907 | -5/Factory | Build established: Hacker-Mutant 22992 | -5/Factory | Discovered exit to Factory (range 15) 23018 | -5/Factory | Repaired Flexi-carbon Leg 23242 | -5/Factory | Discovered exit to Upper Caves (range 15) 23278 | -5/Factory | Build established: Hacker-Skirmisher 23462 | -5/Factory | Incoming investigation squad redirected 23474 | -5/Factory | Fabricated Lgt. Armored Exoskeleton? 24036 | -5/Factory | Repaired Broken Lgt. Armored Exoskeleton 24150 | -5/Factory | Lost 7 parts (1p4n1u1w) 24339 | -5/Factory | Build established: Hacker-Mutant 25088 | -5/Factory | Entered Upper Caves 26817 | -5/Upper Caves | Discovered new exit (range 8) 26874 | -5/Upper Caves | Identified exit to Upper Caves 27357 | -5/Upper Caves | Entered another Upper Caves area 27383 | -5/Upper Caves | Discovered exit to Factory (range 15) 27756 | -5/Upper Caves | Attracted the attention of an 0b10 outpost 27832 | -5/Upper Caves | Destroyed 7 combat bots 28045 | -5/Upper Caves | Encountered a Warlord checkpoint 28427 | -5/Upper Caves | Learned Factory security intel 28547 | -5/Upper Caves | Spotted B-75 Beast 28587 | -5/Upper Caves | Core integrity fell below 50% 28601 | -5/Upper Caves | Destroyed B-75 Beast 28628 | -5/Upper Caves | Lost 6 parts (2p2n2u) 28742 | -5/Upper Caves | Learned 4 Factory zone layouts 28802 | -5/Upper Caves | Discovered new exit (range 15) 28828 | -5/Upper Caves | Identified exit to Zhirov 29367 | -5/Upper Caves | Entered Zhirov 29368 | -5/Zhirov | Discovered new exit (range 3) 29371 | -5/Zhirov | Identified exit to Proximity Caves 29408 | -5/Zhirov | Met Zhirov 29448 | -5/Zhirov | Learned location of Quarantine (-3) 29448 | -5/Zhirov | Learned location of Testing (-2) 29448 | -5/Zhirov | Learned location of Command (-1) 29492 | -5/Zhirov | Zhirov requested help retrieving the SGEMP Prototype 29639 | -5/Zhirov | Revealed the true nature of CR-A16's Pointy Stick 29705 | -5/Zhirov | Found Alien Artifact 29720 | -5/Zhirov | Found Alien Artifact 29773 | -5/Zhirov | Entered Proximity Caves 30672 | -4/Proximity Caves | Learned Research terminal intel 30685 | -4/Proximity Caves | Discovered exit to Factory (range 5) 30698 | -4/Proximity Caves | Entered Factory 30698 | -4/Factory | Evolved 2 slots: Utility x2 30699 | -4/Factory | Identified exit to Extension 30699 | -4/Factory | Identified exit to Armory 30949 | -4/Factory | Identified Transdimensional Reconstructor 30949 | -4/Factory | Identified Integrated Dissipator 30949 | -4/Factory | Installed Integrated Dissipator, increased core heat dissipation (+20) 31617 | -4/Factory | P-70 Sage assimilated allied Director 7a 31722 | -4/Factory | Discovered new exit (range 12) 31739 | -4/Factory | Identified exit to Research 32324 | -4/Factory | Local machine network offline 32683 | -4/Factory | Entered Extension 33004 | -4/Extension | Energy Cycler disabled 33004 | -4/Extension | Rescued a captive Derelict 33006 | -4/Extension | Rescued a captive Derelict 33006 | -4/Extension | Rescued a captive Derelict 33006 | -4/Extension | Rescued a captive Derelict 33008 | -4/Extension | Rescued a captive Derelict 33009 | -4/Extension | Rescued a captive Derelict 33020 | -4/Extension | Rescued a captive Derelict 33333 | -4/Extension | Build established: Hacker-Skirmisher 33820 | -4/Extension | Spotted B-86 Titan 33831 | -4/Extension | Spotted B-86 Titan 33833 | -4/Extension | Destroyed B-86 Titan 33836 | -4/Extension | Discovered exit to Research (range 14) 33851 | -4/Extension | Destroyed B-86 Titan 34267 | -4/Extension | Discovered new exit (range 16) 34268 | -4/Extension | Discovered exit to Research (range 15) 34299 | -4/Extension | Found Unknown Device 34299 | -4/Extension | Identified Quantum Capacitor 34308 | -4/Extension | Identified exit to Cetus 34383 | -4/Extension | Disrupted transfer network 34639 | -4/Extension | Entered Cetus 34641 | -4/Cetus | Identified RU-N14's Throwing Claymores 34661 | -4/Cetus | Spotted Cetus Guard 34661 | -4/Cetus | Spotted Cetus Guard 34664 | -4/Cetus | Spotted Cetus Guard 34665 | -4/Cetus | Spotted Cetus Guard 34674 | -4/Cetus | Destroyed Cetus Guard 34676 | -4/Cetus | Destroyed Cetus Guard 34677 | -4/Cetus | Destroyed Cetus Guard 34702 | -4/Cetus | Destroyed Cetus Guard 34829 | -4/Cetus | Discovered new exit (range 16) 34850 | -4/Cetus | Spotted Cetus Guard 34850 | -4/Cetus | Spotted Cetus Guard 34862 | -4/Cetus | Destroyed Cetus Guard 34862 | -4/Cetus | Spotted Cetus Guard 34863 | -4/Cetus | Spotted Cetus Guard 34865 | -4/Cetus | Destroyed Cetus Guard 34865 | -4/Cetus | Destroyed Cetus Guard 34868 | -4/Cetus | Destroyed Cetus Guard 34876 | -4/Cetus | Discovered exit to Research (range 15) 34884 | -4/Cetus | Met Revision 17 34936 | -4/Cetus | Identified exit to Archives 34937 | -4/Cetus | Entered Archives 34962 | -4/Archives | Build established: Hacker-Mutant 35094 | -4/Archives | Discovered new exit (range 16) 35132 | -4/Archives | Discovered new exit (range 15) 35163 | -4/Archives | Discovered exit to Research (range 16) 35409 | -4/Archives | Build established: Scavenger-Mutant 35500 | -4/Archives | System corruption reached 10% 35627 | -4/Archives | Identified exit to Hub_04(d) 35635 | -4/Archives | Entered Hub_04(d) 35861 | -4/Hub_04(d) | Build established: Hacker-Skirmisher 36112 | -4/Hub_04(d) | Network Hub disabled 36128 | -4/Hub_04(d) | Spotted Lightning 36137 | -4/Hub_04(d) | Entered Research 36137 | -3/Research | Evolved 2 slots: Utility x1, Weapon x1 36138 | -3/Research | Loaded intel: 25 terminal locations 36235 | -3/Research | Found Gamma Bomb Array 36307 | -3/Research | Identified exit to Quarantine 36337 | -3/Research | Revision forces began assault on 0b10 36356 | -3/Research | Found Fusion Bomb Launcher 36392 | -3/Research | Met up with Revision 17++ 36562 | -3/Research | Destroyed 7 combat bots 36573 | -3/Research | Found Prototype Processor 36573 | -3/Research | Identified Spectral Analyzer 36631 | -3/Research | Found Prototype Device 36631 | -3/Research | Identified Exp. ECM Suite 36639 | -3/Research | Spotted B-86 Titan 36695 | -3/Research | Lost 3 allies 36837 | -3/Research | Research terminal network offline 36874 | -3/Research | Local machine network offline 37091 | -3/Research | Spotted B-86 Titan 37105 | -3/Research | Destroyed B-86 Titan 37472 | -3/Research | Found Prototype Launcher 37472 | -3/Research | Identified Com. Tesla Bomb Launcher 37505 | -3/Research | Discovered new exit (range 16) 37530 | -3/Research | Identified exit to Research 37637 | -3/Research | Spotted Striker 37673 | -3/Research | Found Prototype Processor 37673 | -3/Research | Identified Exp. Targeting Computer 37822 | -3/Research | Spotted Striker 37874 | -3/Research | Lost 4 allies 37985 | -3/Research | Spotted Striker 38004 | -3/Research | Destroyed Striker 38059 | -3/Research | Lost 3 parts (2n1u) 38061 | -3/Research | Lost 4 allies 38093 | -3/Research | Spotted Striker 38110 | -3/Research | Destroyed Striker 38117 | -3/Research | Discovered exit to Research (range 14) 38129 | -3/Research | System corruption reached 10% 38132 | -3/Research | Lost 4 parts (1p1n1u1w) 38188 | -3/Research | System corruption reached 30% 38191 | -3/Research | Entered another Research area 38191 | -2/Research | Evolved 2 slots: Power x1, Utility x1 38370 | -2/Research | Repaired Enh. Biometal Leg 38407 | -2/Research | Repaired Centrium Medium Armor Plating 38750 | -2/Research | System corruption reached 10% 38903 | -2/Research | Spotted B-90 Cyclops 38919 | -2/Research | Destroyed B-90 Cyclops 38960 | -2/Research | Discovered new exit (range 3) 38963 | -2/Research | Identified exit to Testing 39002 | -2/Research | Entered Testing 39086 | -2/Testing | Found Prototype Energy Gun 39086 | -2/Testing | Identified Hyp. EM Gauss Rifle 39324 | -2/Testing | Lost 6 parts (1p1n3u1w) 39340 | -2/Testing | Found Fusion Bomb Launcher 39404 | -2/Testing | Spotted Striker 39404 | -2/Testing | Spotted Striker 39446 | -2/Testing | Core integrity fell below 50% 39513 | -2/Testing | Spotted PX-T7OHO4MSY3 39601 | -2/Testing | Found Prototype Ballistic Cannon 39601 | -2/Testing | Identified Perforator 39752 | -2/Testing | First assault squad dispatched 39770 | -2/Testing | Found Corrupted Prototype Energy Gun 39770 | -2/Testing | Identified Warp Gun 39776 | -2/Testing | Incoming assault squad redirected 39779 | -2/Testing | Incoming assault squad redirected 39925 | -2/Testing | Build established: Scavenger-Tank 40053 | -2/Testing | Incoming assault squad redirected 40171 | -2/Testing | Spotted PY-TDOYVISUP3 40182 | -2/Testing | Destroyed PY-TDOYVISUP3 40267 | -2/Testing | Incoming assault squad redirected 40350 | -2/Testing | System corruption reached 30% 40574 | -2/Testing | High security lockdown imminent 40612 | -2/Testing | Destroyed 7 combat bots 40654 | -2/Testing | High security lockdown engaged 40673 | -2/Testing | Found Prototype Protection 40673 | -2/Testing | Identified SHELL Armor 40770 | -2/Testing | Core integrity fell below 20% 40798 | -2/Testing | Spotted Investigator 40798 | -2/Testing | Destroyed Investigator 40805 | -2/Testing | Found Prototype Launcher 40805 | -2/Testing | Identified Containment Facilitator 40822 | -2/Testing | Spotted Executioner 40848 | -2/Testing | Destroyed Executioner 40882 | -2/Testing | Destroyed 15 combat bots 40890 | -2/Testing | Lost 5 parts (1p2n2w) 40941 | -2/Testing | Spotted Striker 40941 | -2/Testing | Spotted Striker 40941 | -2/Testing | Spotted Investigator 40942 | -2/Testing | Scanned by Researcher 40949 | -2/Testing | Destroyed Investigator 40951 | -2/Testing | Warped through subspace 40970 | -2/Testing | Destroyed 7 combat bots 40974 | -2/Testing | Spotted Executioner 40974 | -2/Testing | Spotted Striker 40989 | -2/Testing | Found Fusion Bomb Launcher 40992 | -2/Testing | Released all parts (16) 40994 | -2/Testing | Destroyed by G-73 Enforcer with Phase Gun Last Messages --------------- 40981_ System corrupted: Component data lost. 40983_ Knocked back. 40989_ Acquired Fusion Bomb Launcher. 40990_ Terminal disabled. 40991_ SHELL Armor destroyed. 40992_ Released Biometal Leg. 40992_ Released Myomer Leg. 40992_ Released Lgt. Quantum Reactor. 40992_ Released Adv. Target Analyzer. 40992_ Released Enh. Biometal Leg. 40992_ Released Exp. Coolant Injector. 40992_ Released Hcp. Storage Unit. 40992_ Released Imp. Hacking Suite. 40992_ Released Adv. Signal Interpreter. 40992_ Released Adv. Terrain Scan Processor. 40992_ Released Imp. Hacking Suite. 40992_ Released Lgt. Quantum Reactor. 40992_ Released Biometal Leg. 40992_ Released Fusion Bomb Launcher. 40993_ Extracted 1 energy. Map ----- +----------------------------------------------------+ | ## ## #??????????????????????????????????? | | #### ##??????????????????????????????????? | | #???????????????????????????????????? | | =# #???????????????????????????????????? | | # # =[%# #???????????????????????????????????? | | #### [###???????????????????????????????????? | | ##] #?????????????????????????????????????? | | ###""!##?????????????????????????????????????? | | ## !!!#?????????????????????????????????????? | | #######?????????????????????????????????????? | | ## ##???????????????????????????????????????????? | | ## ###?????????????????????????????????????????? | | # % ###???????????????????????????????????????? | | #% #???????????????????????????????????????? | | * ##???????????????????????????????????????? | | #???????????????????????????????????????? | | #???????????????????????????????????????? | | #??????????######???????????????????????? | | #??????????# #???????????????????????? | | # % #?????????# ! "#??#####????????????????? | | %% [ #????????#%= "#??""" #????????????????? | | % # #########/!%"#?""F""#????????????????? | | % *!==T##"" ""###??????????????? | | % #% ########!===!# #??????????????? | | ###??????#!!K!* #??????????????? | | % ##????????#]!*!!@ """"" #??????????????? | | % = ?????????## * / """""????????????????? | | #"% ###??????????## lg """"" ???????????????? | | #?#" #????????????# Ep ???????????????? | | ??? #?????#######;# g ! """"" ???????????????? | | ???+##?#?????# /b """"????????????????? | | ?????????????# g """"" S"#???????????? | | ?????????????# " ib + """????????????? | | ?????????????# "g # """"" """????????????? | | ?????????????# ######## """"" ???????????????? | | ?????????????# #???????g """"?????????????????? | | ?????????????# ######## ?????????????????? | | ?????????????# #!!! = *????????????????? | | ?????? / #!!! ???????????????? | | ????" # #!! ???????????????? | | ??? # #? ? ! #??????????????? | | ??? ?#### """ #????#####??????????????? | | ???? ?????# """ #???????????????????????? | | ????######??????# """ #???????????????????????? | | ????????????????# !#???????????????????????? | | ????????????????# ""?? #???????????????????????? | | ????????????????? ""????#???????????????????????? | | ????????????????? "?????????????????????????????? | | ????????????????? ?????????????????????????????? | | ????????????????? "?????????????????????????????? | +----------------------------------------------------+ Best States ------------- Heat Dissipation 69 Coolant Potential 120 Energy Generation 65 Energy Capacity 1105 Matter Stores 300 Matter Capacity 300 Sight Range 23 Robot Scan Range 20 Terrain Scan Range 20 Terrain Scan Density 210 ECM Strength 3 Jamming Range 16 Armor Coverage 900 Resistance: KI 30 Resistance: TH 30 Resistance: EM 25 Core Shielding 20 Phase Shifting 15 Evasion (%) 70 Targeting Accuracy 12 Target Analysis 8 Energy Filtering 50 Kinecelleration 30 Offensive Hacking 48 Defensive Hacking 14 Item Schematics ----------------- Hcp. Storage Unit | -10/Materials | Hacked Combat Drone Bay | -7/Data Miner | Free Lgt. Regenerative Plating | -7/Data Miner | Free Cld. Aerolev Unit | -7/Data Miner | Free Gravity Neutralizer | -7/Data Miner | Free Ion Burst Cannon | -7/Data Miner | Free Hvy. Treads | -7/Data Miner | Free Imp. Shock Absorption System | -7/Data Miner | Free Enh. Gauss Cannon | -7/Data Miner | Free Imp. Plasma Cutter | -7/Data Miner | Free Hvy. Disruptor Cannon | -7/Data Miner | Free Battle Cannon | -6/Zion | Free Flamer | -6/Zion | Free Slug Cannon | -6/Zion | Free Enh. Flamer | -6/Zion | Free Ripper | -6/Zion | Free Lgt. Armored Exoskeleton | -5/Factory | Scanalyzed Assault Drone Bay | -5/Zhirov | Free Exp. Heat Sink | -5/Zhirov | Free Exp. Optical Array | -5/Zhirov | Free Imp. Arc Thrower | -5/Zhirov | Free Lrn. Terrain Scanner | -4/Factory | Hacked Exp. Signal Interpreter | -3/Research | Hacked Exp. Terrain Scan Processor | -3/Research | Hacked Enh. Biometal Leg | -2/Research | Scanalyzed Lrn. Sensor Array | -2/Testing | Hacked Robot Schematics ------------------ M-28 Smith | -7/Data Miner | Free L-41 Fighter | -7/Data Miner | Free M-14 Sweeper | -7/Data Miner | Free R-10 Processor | -7/Data Miner | Free A-15 Conveyor | -7/Data Miner | Free Fabricated ------------ M-28 Smith | x1 | -7/Factory | Preloaded Lgt. Armored Exoskeleton | x1 | -5/Factory Alien Tech Used ----------------- Integrated Dissipator Transdimensional Reconstructor Achievements -------------- Deadly Force Giant Slayer Left-hand Path Challenges ------------ None Game ------ Seed BackupPortableMantle Manual? 0 Play Time 06:28:39 Cumulative 245.6 hours Start 2024.09.28 @ 14:51:07 End 2024.09.28 @ 21:36:37 Sessions 1 Manual Loads 0 Difficulty Rogue Special Mode None Game No. 131 Rogue 131 Adventurer 0 Explorer 0 Win Type - Total 4 Types 4/0/0/0/0/0/0/0/0 Lore% 40 Gallery% 64 Achievement% 56 Wizard Run 0 Options --------- Layout 0 ASCII 0 Keyboard 1 Movement Vi Keybinds 0 Fullscreen 2 Font 18/SmallcapsGlow Map View 76x50 Zoom Use 0% Tactical HUD 1 Map Filters NONE Filters NONE Steam 1 RUN: c1677a29-14f8-4de2-9d94-7de207e105e0